bitfinex-derivatives/quotes_SOLF0:USTF0_20250529
["timestamp","ask_amount","ask_price","bid_price","bid_amount"]
[1748561107551,0.04366884,166.75,166.73,5.9973]
[1748561108344,0.04366884,166.75,166.74,5.997]
[1748561108548,0.04366884,166.75,166.74,38.677]
[1748561108751,5.17973458,166.82,166.75,5.9963]
[1748561109049,5.9953,166.79,166.74,32.68]
[1748561109251,1.997,166.83,166.76,5.9962]
[1748561109456,1.997,166.83,166.72,2.0545]
[1748561109760,5.17973458,166.76,166.69,2.0238]
[1748561109954,0.03849012,166.74,166.71,0.04444122]
[1748561110149,0.04429566,166.74,166.71,0.04213152]
[1748561110351,5.9974,166.73,166.71,0.04213152]
[1748561111052,5.9977,166.72,166.71,0.04213152]
[1748561114761,5.9977,166.72,166.71,3.152e-05]
[1748561114957,5.9995,166.67,166.66,35.8]
[1748561115455,40.97973458,166.74,166.66,35.8]
[1748561115960,5.9988,166.69,166.68,0.03919352]
[1748561119459,0.04597799,166.72,166.68,0.03919352]
[1748561120251,6.04397799,166.72,166.68,6.03809352]
[1748561120455,0.04597799,166.72,166.68,6.03809352]
[1748561120856,6.04377799,166.72,166.68,6.03809352]
[1748561121060,6.04377799,166.72,166.69,5.9987]
[1748561121360,6.04377799,166.72,166.68,0.03919352]
[1748561123059,6.04377799,166.72,166.68,6.03829352]
[1748561126664,0.04597799,166.72,166.68,0.03919352]
[1748561126864,0.04597799,166.72,166.69,2.0043]
[1748561127058,0.04597799,166.72,166.7,4.1232]
[1748561127363,5.9968,166.75,166.71,41.7981]
[1748561127757,5.17973458,166.79,166.71,35.8]
[1748561128257,0.03954591,166.77,166.73,0.04290487]
[1748561128857,5.997,166.74,166.73,0.04290487]
[1748561136864,5.9968,166.75,166.73,0.04290487]
[1748561138263,0.03954591,166.77,166.73,0.04290487]
[1748561141473,5.9965,166.76,166.73,6.04010487]
[1748561142272,6.03574591,166.77,166.74,5.997]
[1748561143767,0.03954591,166.77,166.75,5.9965]
[1748561143970,1.9642,166.83,166.76,35.8]
[1748561145069,0.03897748,166.81,166.78,0.04530961]
[1748561145472,5.9952,166.79,166.78,0.04530961]
[1748561149782,5.995,166.8,166.78,0.04530961]
[1748561150383,0.03897748,166.81,166.78,0.04530961]
[1748561151285,5.9951,166.8,166.78,0.04530961]
[1748561153884,5.9952,166.79,166.78,0.04530961]
[1748561155287,5.995,166.8,166.78,0.04530961]
[1748561156483,5.9952,166.79,166.78,0.04530961]
[1748561160290,5.995,166.8,166.78,0.04530961]
[1748561162087,5.9952,166.79,166.78,0.04530961]
[1748561162285,0.03897748,166.81,166.78,0.04530961]
[1748561163491,5.9952,166.79,166.78,0.04530961]
[1748561164191,5.9949,166.8,166.78,0.04530961]
[1748561164891,6.03347748,166.81,166.78,6.04080961]
[1748561166494,5.9949,166.8,166.78,6.04080961]
[1748561167097,5.9949,166.8,166.78,0.04530961]
[1748561169493,5.9952,166.79,166.78,0.04530961]
[1748561170892,5.995,166.8,166.78,0.04530961]
[1748561171494,5.9952,166.79,166.78,0.04530961]
[1748561172199,5.995,166.8,166.78,0.04530961]
[1748561175803,5.995,166.8,166.78,6.04080961]
[1748561175998,5.995,166.8,166.78,0.04530961]
[1748561176398,6.03357748,166.81,166.78,0.04530961]
[1748561176595,0.03897748,166.81,166.78,0.04530961]
[1748561176798,0.03897748,166.81,166.8,5.9948]
[1748561177000,0.03897748,166.81,166.8,40.5548]
[1748561177806,5.9933,166.85,166.8,34.56]
[1748561178509,2.0247,166.87,166.8,34.56]
[1748561178510,5.9928,166.86,166.8,34.56]
[1748561178705,39.73973458,166.9,166.8,34.56]
[1748561179010,0.04289915,166.87,166.83,6.03396794]
[1748561179310,5.9929,166.86,166.83,6.03396794]
[1748561179508,5.9929,166.86,166.83,0.04046794]
[1748561180106,5.9929,166.86,166.84,34.56]
[1748561180505,0.04289915,166.87,166.84,34.56]
[1748561181107,5.9927,166.86,166.84,34.56]
[1748561181909,0.04289915,166.87,166.84,34.56]
[1748561181910,6.03519915,166.87,166.84,34.56]
[1748561182910,5.9927,166.86,166.84,34.56]
[1748561183306,0.04289915,166.87,166.84,34.56]
[1748561183506,0.04289915,166.87,166.84,40.5531]
[1748561184211,0.04289915,166.87,166.85,5.993]
[1748561184512,0.04289915,166.87,166.84,34.56]
[1748561184810,0.04289915,166.87,166.84,40.5533]
[1748561185007,6.03519915,166.87,166.84,40.5533]
[1748561186314,0.04289915,166.87,166.85,5.993]
[1748561186710,6.03519915,166.87,166.84,40.5533]
[1748561188302,0.04289915,166.87,166.85,5.993]
[1748561188909,0.04289915,166.87,166.86,5.9927]
[1748561189104,0.04289915,166.87,166.84,34.56]
[1748561189313,0.04289915,166.87,166.84,36.5382]
[1748561190504,0.04289915,166.87,166.85,5.9931]
[1748561191316,0.04289915,166.87,166.86,5.9927]
[1748561199422,0.02126493,166.87,166.86,5.9927]
[1748561207925,0.02126493,166.87,166.86,9.30089684]
[1748561210930,5.9907,166.92,166.89,5.9913]
[1748561211226,5.9907,166.92,166.9,33.46]
[1748561212720,0.03791253,166.93,166.9,33.46]
[1748561212926,0.03791253,166.93,166.9,36.76819684]
[1748561213726,6.02831253,166.93,166.9,42.75929684]
[1748561215223,6.02831253,166.93,166.91,5.9908]
[1748561217836,6.02831253,166.93,166.9,42.75939684]
[1748561218937,5.9906,166.92,166.9,42.75939684]
[1748561219733,6.02821253,166.93,166.9,42.75939684]
[1748561225943,5.9907,166.92,166.9,33.46]
[1748561226144,3.30819684,166.92,166.89,0.04598472]
[1748561226339,3.30819684,166.9,166.89,0.04598472]
[1748561227939,9.29949684,166.9,166.89,0.04598472]
[1748561228449,3.30819684,166.9,166.85,33.44]
[1748561228648,5.9927,166.86,166.85,33.44]
[1748561230443,5.9931,166.85,166.84,0.04372428]
[1748561231145,9.30129684,166.85,166.84,0.04372428]
[1748561231340,5.9941,166.82,166.81,33.46]
[1748561231540,35.4667,166.9,166.76,520.84819684]
[1748561231541,3.30819684,166.83,166.76,520.84819684]
[1748561231852,5.9954,166.79,166.77,33.46]
[1748561232950,0.04161016,166.8,166.77,33.46]
[1748561232951,6.03661016,166.8,166.77,33.46]
[1748561233944,0.04161016,166.8,166.77,39.4557]
[1748561234150,0.04161016,166.8,166.77,33.46]
[1748561235348,0.04161016,166.8,166.76,0.04243491]
[1748561236344,5.9959,166.77,166.76,0.04243491]
[1748561237246,0.04161016,166.8,166.76,0.04243491]
[1748561238347,5.9959,166.77,166.76,0.04243491]
[1748561240051,5.9957,166.78,166.76,0.04243491]
[1748561240548,0.04161016,166.8,166.76,0.04243491]
[1748561241153,5.9958,166.78,166.76,0.04243491]
[1748561241749,0.04161016,166.8,166.76,0.04243491]
[1748561241750,5.9959,166.77,166.76,0.04243491]
[1748561242956,5.9957,166.78,166.76,0.04243491]
[1748561243956,5.9953,166.79,166.76,0.04243491]
[1748561244146,5.9953,166.79,166.76,6.03863491]
[1748561244655,0.04161016,166.8,166.77,5.9959]
[1748561244858,0.04161016,166.8,166.77,38.4959]
[1748561245054,0.04161016,166.8,166.77,32.5]
[1748561245356,0.04161016,166.8,166.79,5.9952]
[1748561246059,0.04161016,166.8,166.78,5.9955]
[1748561246856,0.04161016,166.8,166.79,5.9952]
[1748561247555,0.04161016,166.8,166.78,5.9954]
[1748561251950,0.04161016,166.8,166.77,38.4958]
[1748561252352,0.04161016,166.8,166.77,32.5]
[1748561252555,0.04161016,166.8,166.79,5.9952]
[1748561271568,0.04161016,166.8,166.76,0.04243491]
[1748561272270,5.9959,166.77,166.76,0.04243491]
[1748561273263,0.04161016,166.8,166.76,0.04243491]
[1748561273665,5.9959,166.77,166.76,0.04243491]
[1748561276262,5.9957,166.78,166.76,0.04243491]
[1748561276468,0.04161016,166.8,166.76,0.04243491]
[1748561277476,0.04161016,166.8,166.78,5.9953]
[1748561277679,0.04161016,166.8,166.76,31.86243491]
[1748561278171,0.04161016,166.8,166.77,5.9956]
[1748561278779,0.04161016,166.8,166.78,5.9954]
[1748561279071,0.04161016,166.8,166.76,31.86243491]
[1748561279466,0.04161016,166.8,166.77,5.9957]
[1748561280575,0.04161016,166.8,166.78,5.9955]
[1748561280768,0.04161016,166.8,166.76,31.86243491]
[1748561281877,0.04161016,166.8,166.78,5.9953]
[1748561285878,0.04161016,166.8,166.79,5.9952]
[1748561286276,0.04161016,166.8,166.76,31.86243491]
[1748561286578,0.04161016,166.8,166.76,0.04243491]
[1748561286781,0.04161016,166.8,166.77,31.82]
[1748561287176,0.04161016,166.8,166.77,37.8156]
[1748561287879,0.04161016,166.8,166.78,5.9955]
[1748561289078,6.03651016,166.8,166.77,37.8159]
[1748561289275,6.03651016,166.8,166.77,31.82]
[1748561289785,0.04161016,166.8,166.77,31.82]
[1748561290488,0.04161016,166.8,166.78,5.9955]
[1748561291074,6.03651016,166.8,166.77,31.82]
[1748561292285,0.04161016,166.8,166.77,37.8157]
[1748561293391,0.04161016,166.8,166.78,5.9955]
[1748561293582,0.04161016,166.8,166.77,31.82]
[1748561293979,6.03651016,166.8,166.77,31.82]
[1748561294180,0.04161016,166.8,166.77,37.8157]
[1748561294882,0.04161016,166.8,166.78,5.9955]
[1748561297290,6.03651016,166.8,166.77,37.8159]
[1748561297689,0.04161016,166.8,166.77,31.82]
[1748561299187,6.03671016,166.8,166.77,37.8159]
[1748561302293,6.03671016,166.8,166.78,5.9955]
[1748561302596,6.03671016,166.8,166.77,31.82]
[1748561302897,6.03671016,166.8,166.77,37.8157]
[1748561303097,5.9953,166.79,166.77,31.82]
[1748561304297,6.03661016,166.8,166.77,37.8159]
[1748561312020,0.04161016,166.8,166.77,31.82]
[1748561312706,0.04161016,166.8,166.77,33.8742]
[1748561312908,0.04161016,166.8,166.79,5.9952]
[1748561315109,5.9931,166.85,166.81,5.9942]
[1748561315316,5.9931,166.85,166.82,31.52]
[1748561315916,5.9931,166.85,166.82,37.5139]
[1748561316117,6.03230611,166.85,166.82,37.55700036]
[1748561317409,0.03920611,166.85,166.83,5.9937]
[1748561317615,0.03920611,166.85,166.82,31.56310036]
[1748561318014,0.03920611,166.85,166.84,5.9934]
[1748561332528,2.032,166.93,166.83,2.017]
[1748561332727,2.032,166.93,166.85,5.17672768]
[1748561332927,2.032,166.93,166.86,31.5]
[1748561333125,8.0225,166.93,166.89,5.9916]
[1748561333528,8.0628219,166.93,166.89,6.03496748]
[1748561333728,6.0308219,166.93,166.9,31.5]
[1748561333932,0.0403219,166.93,166.9,31.5]
[1748561334525,0.0403219,166.93,166.9,37.4911]
[1748561335135,0.0403219,166.93,166.91,5.9909]
[1748561335335,0.0403219,166.93,166.9,31.5]
[1748561335534,6.0305219,166.93,166.9,31.5]
[1748561335930,6.0305219,166.93,166.9,37.4911]
[1748561339537,0.0403219,166.93,166.9,31.5]
[1748561339734,0.0403219,166.93,166.89,0.04336748]
[1748561340734,5.9913,166.9,166.89,0.04336748]
[1748561345733,0.0403219,166.93,166.89,0.04336748]
[1748561348342,6.0308219,166.93,166.89,6.03496748]
[1748561349447,6.0308219,166.93,166.9,5.9913]
[1748561349644,6.0308219,166.93,166.91,31.5]
[1748561350836,5.9905,166.92,166.91,31.5]
[1748561351040,0.0403219,166.93,166.91,31.5]
[1748561351445,6.0306219,166.93,166.91,31.5]
[1748561351840,5.9905,166.92,166.91,31.5]
[1748561352041,0.0403219,166.93,166.89,0.04336748]
[1748561352744,5.9913,166.9,166.89,0.04336748]
[1748561353543,5.17672768,166.92,166.85,31.5]
[1748561353743,2.0294,166.89,166.85,31.5]
[1748561353946,5.9921,166.88,166.85,31.5]
[1748561354137,2.0294,166.89,166.85,31.5]
[1748561354539,2.0718828,166.89,166.85,31.54567385]
[1748561354949,8.0635828,166.89,166.85,37.53847385]
[1748561356048,0.0424828,166.89,166.85,31.54567385]
[1748561356647,6.0343828,166.89,166.85,37.53837385]
[1748561357652,0.0424828,166.89,166.86,5.9925]
[1748561359759,0.0424828,166.89,166.87,5.9921]
[1748561361244,6.0341828,166.89,166.85,31.54567385]
[1748561361856,6.0341828,166.89,166.85,37.53847385]
[1748561362560,0.0424828,166.89,166.86,5.9926]
[1748561364654,0.0424828,166.89,166.87,5.9923]
[1748561368051,0.0424828,166.89,166.86,5.9926]
[1748561368256,0.0424828,166.89,166.85,31.54567385]
[1748561369264,0.0424828,166.89,166.86,5.9924]
[1748561369664,0.0424828,166.89,166.87,5.9923]
[1748561370561,6.0341828,166.89,166.86,5.9927]
[1748561377960,6.0341828,166.89,166.87,31.48]
[1748561380372,6.0341828,166.89,166.87,37.4723]
[1748561382374,5.992,166.88,166.87,31.48]
[1748561384677,6.0342828,166.89,166.87,31.48]
[1748561387879,5.992,166.88,166.87,31.48]
[1748561388081,3.35212662,166.89,166.85,0.04567385]
[1748561388286,3.30964382,166.87,166.85,0.04567385]
[1748561388979,5.9927,166.86,166.85,0.04567385]
[1748561391285,0.0424828,166.89,166.85,0.04567385]
[1748561391787,5.9922,166.88,166.85,6.03847385]
[1748561393392,0.0424828,166.89,166.85,0.04567385]
[1748561394390,5.9927,166.86,166.85,0.04567385]
[1748561399495,0.0424828,166.89,166.85,0.04567385]
[1748561401498,5.9927,166.86,166.85,0.04567385]
[1748561403097,5.9924,166.87,166.85,0.04567385]
[1748561403295,0.0424828,166.89,166.85,0.04567385]
[1748561403692,5.9927,166.87,166.85,0.04567385]
[1748561403892,0.0424828,166.89,166.85,0.04567385]
[1748561404299,5.9927,166.86,166.85,0.04567385]
[1748561405287,5.9927,166.86,166.81,31.46]
[1748561405499,5.9941,166.82,166.81,31.46]
[1748561405699,5.17378334,166.87,166.78,10.0475]
[1748561405999,5.9946,166.81,166.78,10.0475]
[1748561406395,0.04181142,166.81,166.79,5.9951]
[1748561406696,0.04181142,166.81,166.78,4.09662253]
[1748561407699,0.04181142,166.81,166.8,5.9949]
[1748561407899,0.04181142,166.81,166.8,37.4549]
[1748561413602,0.04181142,166.81,166.8,31.46]
[1748561415597,6.03631142,166.81,166.8,31.46]
[1748561416692,5.9952,166.79,166.78,0.04452253]
[1748561417099,0.04181142,166.81,166.78,0.04452253]
[1748561418697,6.03661142,166.81,166.78,6.03992253]
[1748561420700,6.03661142,166.81,166.78,0.04452253]
[1748561420901,5.995,166.8,166.78,0.04452253]
[1748561421104,0.04181142,166.81,166.78,0.04452253]
[1748561421405,6.03661142,166.81,166.78,0.04452253]
[1748561422005,6.03661142,166.81,166.78,6.04002253]
[1748561423201,0.04181142,166.81,166.78,6.04002253]
[1748561424509,6.03631142,166.81,166.78,6.04002253]
[1748561424809,0.04181142,166.81,166.78,0.04452253]
[1748561425005,6.03651142,166.81,166.78,0.04452253]
[1748561425207,0.04181142,166.81,166.78,0.04452253]
[1748561426211,6.03641142,166.81,166.78,6.03992253]
[1748561427100,6.03641142,166.81,166.78,0.04452253]
[1748561427305,0.04181142,166.81,166.78,0.04452253]
[1748561428210,5.9952,166.8,166.78,0.04452253]
[1748561428810,5.9952,166.79,166.78,0.04452253]
[1748561429612,5.995,166.8,166.78,0.04452253]
[1748561430206,5.9952,166.79,166.78,0.04452253]
[1748561432109,5.9952,166.79,166.78,2.253e-05]
[1748561433715,5.9982,166.71,166.7,31.46]
[1748561433921,5.17378334,166.78,166.7,31.46]
[1748561434115,5.9973,166.74,166.7,31.46]
[1748561434316,2.025,166.8,166.72,5.9974]
[1748561434728,5.996,166.77,166.74,0.04397618]
[1748561435019,0.04596458,166.78,166.74,0.04397618]
[1748561435411,5.9966,166.75,166.74,0.04397618]
[1748561438124,5.9966,166.75,166.74,7.618e-05]
[1748561447322,5.9966,166.75,166.67,31.46]
[1748561447323,5.9992,166.68,166.67,31.46]
[1748561447528,33.5278,166.74,166.64,31.46]
[1748561448026,5.9995,166.67,166.64,37.4602]
[1748561448226,6.04455706,166.67,166.64,31.5024358]
[1748561448431,6.0001,166.65,166.64,31.5024358]
[1748561449135,5.9998,166.66,166.64,31.5024358]
[1748561449333,0.04505706,166.67,166.64,31.5024358]
[1748561450435,0.04505706,166.67,166.65,6.0]
[1748561451734,6.04445706,166.67,166.64,37.5028358]
[1748561452525,6.04445706,166.67,166.64,31.5024358]
[1748561452732,5.9998,166.66,166.64,31.5024358]
[1748561453026,0.04505706,166.67,166.64,31.5024358]
[1748561453223,6.04465706,166.67,166.64,31.5024358]
[1748561453626,0.04505706,166.67,166.64,31.5024358]
[1748561454125,0.04505706,166.67,166.65,6.0]
[1748561454739,0.04505706,166.67,166.64,31.5024358]
[1748561455532,0.04505706,166.67,166.66,5.9997]
[1748561464050,0.04505706,166.67,166.65,5.9999]
[1748561464342,0.04505706,166.67,166.64,31.5024358]
[1748561464739,31.46,166.77,166.65,5.17378334]
[1748561465144,33.3653,166.8,166.7,5.9983]
[1748561465340,33.3653,166.8,166.71,31.46]
[1748561465737,0.04194962,166.77,166.74,0.03852044]
[1748561466539,0.04194962,166.77,166.75,31.46]
[1748561468748,6.03794962,166.77,166.75,31.46]
[1748561468948,0.04194962,166.77,166.75,31.46]
[1748561469447,5.9961,166.76,166.75,31.46]
[1748561472047,6.03784962,166.77,166.75,31.46]
[1748561473353,5.9961,166.76,166.75,31.46]
[1748561473750,0.04194962,166.77,166.75,31.46]
[1748561475151,0.04194962,166.77,166.75,37.4562]
[1748561475451,0.04194962,166.77,166.75,31.46]
[1748561475649,5.9944,166.81,166.75,31.46]
[1748561475949,33.5533,166.86,166.75,31.46]
[1748561476657,0.03965268,166.82,166.79,0.0421184]
[1748561477051,5.995,166.8,166.79,0.0421184]
[1748561478448,5.995,166.8,166.79,31.8421184]
[1748561479249,5.9945,166.81,166.79,31.8421184]
[1748561479856,0.03965268,166.82,166.79,31.8421184]
[1748561480259,5.9946,166.81,166.79,31.8421184]
[1748561482153,5.9947,166.8,166.79,31.8421184]
[1748561484461,5.9945,166.81,166.79,31.8421184]
[1748561484859,0.03965268,166.82,166.79,31.8421184]
[1748561485662,5.9947,166.8,166.79,31.8421184]
[1748561485961,0.03965268,166.82,166.79,31.8421184]
[1748561486562,5.9947,166.8,166.79,31.8421184]
[1748561492766,0.03965268,166.82,166.79,31.8421184]
[1748561493367,6.03385268,166.82,166.79,37.8371184]
[1748561493569,0.03965268,166.82,166.79,31.8421184]
[1748561493770,0.03965268,166.82,166.8,5.9945]
[1748561497771,6.03385268,166.82,166.79,37.8370184]
[1748561499675,5.9944,166.81,166.79,31.8421184]
[1748561502274,6.03385268,166.82,166.79,37.8371184]
[1748561502471,6.03385268,166.82,166.79,31.8421184]
[1748561503270,6.03385268,166.82,166.79,37.8372184]
[1748561504981,0.03965268,166.82,166.8,5.9946]
[1748561506770,0.03965268,166.82,166.81,5.9943]
[1748561510390,2.0657,166.91,166.84,5.9932]
[1748561510588,5.9921,166.88,166.85,31.72]
[1748561511284,0.04349135,166.88,166.86,5.9925]
[1748561514184,0.04349135,166.88,166.87,5.9922]
[1748561516086,0.04349135,166.88,166.86,9.30328334]
[1748561516087,5.9898,166.94,166.91,5.9906]
[1748561516988,5.9898,166.94,166.91,6.03258163]
[1748561516989,6.03002092,166.94,166.91,6.03258163]
[1748561517391,0.04022092,166.94,166.92,5.9903]
[1748561517893,0.04022092,166.94,166.91,0.04198163]
[1748561518086,5.9883,166.98,166.92,5.17378334]
[1748561518286,5.9883,166.98,166.92,7.21668334]
[1748561518694,5.9883,166.98,166.95,5.9893]
[1748561518991,5.988,166.99,166.96,31.7]
[1748561519186,0.04345986,166.99,166.96,31.73806508]
[1748561519591,6.03145986,166.99,166.96,31.73806508]
[1748561519990,0.04345986,166.99,166.96,37.72696508]
[1748561520191,0.04345986,166.99,166.96,31.73806508]
[1748561521287,0.04345986,166.99,166.96,36.91184842]
[1748561523493,0.04345986,166.99,166.98,5.9883]
[1748561524988,31.7,167.12,166.96,36.91184842]
[1748561525189,31.7,167.12,166.99,5.17378334]
[1748561525385,31.7,167.12,167.0,31.7]
[1748561525594,31.7,167.12,167.0,37.6875]
[1748561525795,31.7,167.12,167.0,31.7]
[1748561525994,0.04236565,167.08,167.04,0.03951588]
[1748561526194,5.9858,167.05,167.04,31.73951588]
[1748561530897,5.9851,167.07,167.04,37.72561588]
[1748561531290,0.04236565,167.08,167.04,31.73951588]
[1748561531501,0.04236565,167.08,167.06,5.9851]
[1748561531801,0.04236565,167.08,167.04,31.73951588]
[1748561531999,6.02726565,167.08,167.04,37.72531588]
[1748561532195,6.02726565,167.08,167.04,31.73951588]
[1748561532804,0.04236565,167.08,167.05,5.9855]
[1748561533003,0.04236565,167.08,167.04,31.73951588]
[1748561533407,0.04236565,167.08,167.06,5.9852]
[1748561535009,0.04236565,167.08,167.07,5.985]
[1748561536909,0.04236565,167.08,167.06,5.9853]
[1748561537105,0.04236565,167.08,167.04,31.73951588]
[1748561537911,0.04236565,167.08,167.07,5.985]
[1748561538818,31.6,167.18,167.1,5.9838]
[1748561539018,5.9824,167.15,167.11,31.6]
[1748561539209,5.9824,167.15,167.12,31.6]
[1748561539413,1.9601,167.19,167.12,31.6]
[1748561539917,0.04025419,167.17,167.14,0.04574394]
[1748561540112,5.9824,167.15,167.14,0.04574394]
[1748561540914,5.982,167.16,167.14,0.04574394]
[1748561541122,0.04025419,167.17,167.14,0.04574394]
[1748561542018,5.9822,167.15,167.14,0.04574394]
[1748561543911,5.984,167.1,167.09,31.6]
[1748561544116,5.984,167.1,167.08,31.6]
[1748561544625,5.9843,167.09,167.08,31.6]
[1748561545017,6.02922456,167.1,167.08,31.6]
[1748561545417,0.04512456,167.1,167.08,31.6]
[1748561545822,5.9843,167.09,167.08,31.6]
[1748561550023,0.04512456,167.1,167.08,31.6]
[1748561550327,0.04512456,167.1,167.08,37.5845]
[1748561552726,1.9495,167.2,167.08,31.6]
[1748561553031,1.9495,167.2,167.1,5.17378334]
[1748561553329,1.9495,167.2,167.13,5.9827]
[1748561553623,5.9816,167.17,167.14,31.6]
[1748561553825,0.04368499,167.17,167.14,31.64371552]
[1748561554329,0.04368499,167.17,167.16,5.9818]
[1748561555427,3.9846,167.25,167.19,5.9807]
[1748561555633,5.9168,167.25,167.18,31.58]
[1748561555934,5.9807,167.2,167.18,31.58]
[1748561556527,6.02518407,167.21,167.18,31.58]
[1748561557232,5.9806,167.2,167.18,31.58]
[1748561558126,5.9808,167.19,167.18,31.58]
[1748561558728,5.9805,167.2,167.18,31.58]
[1748561558927,0.04508407,167.21,167.18,31.58]
[1748561560436,0.04508407,167.21,167.17,0.04355118]
[1748561561134,0.04508407,167.21,167.15,31.58]
[1748561562334,0.04508407,167.21,167.16,0.039412]
[1748561563139,5.9815,167.17,167.16,0.039412]
[1748561563342,5.17378334,167.2,167.12,31.58]
[1748561563638,1.9417,167.19,167.12,31.58]
[1748561563833,5.9825,167.15,167.12,31.58]
[1748561564232,5.9825,167.15,167.12,31.62343374]
[1748561564430,6.02651365,167.15,167.12,31.62343374]
[1748561564638,6.02651365,167.15,167.12,37.60643374]
[1748561564940,6.02651365,167.15,167.12,31.62343374]
[1748561565334,0.04401365,167.15,167.12,31.62343374]
[1748561565936,0.04401365,167.15,167.12,0.04343374]
[1748561566737,5.9829,167.13,167.12,0.04343374]
[1748561567146,0.04401365,167.15,167.12,0.04343374]
[1748561567943,5.9827,167.14,167.12,0.04343374]
[1748561568845,5.9829,167.13,167.12,0.04343374]
[1748561569242,0.04401365,167.15,167.12,0.04343374]
[1748561569444,5.9827,167.14,167.12,0.04343374]
[1748561569645,0.04401365,167.15,167.12,0.04343374]
[1748561570540,0.04401365,167.15,167.14,5.9826]
[1748561578747,0.04401365,167.15,167.13,5.9828]
[1748561579847,0.04401365,167.15,167.14,5.9826]
[1748561581144,0.04401365,167.15,167.12,2.07723374]
[1748561581145,0.04401365,167.15,167.12,0.04343374]
[1748561581650,5.9829,167.14,167.12,0.04343374]
[1748561582245,5.9829,167.13,167.12,0.04343374]
[1748561584844,5.9843,167.09,167.08,31.5]
[1748561586146,6.02305701,167.1,167.08,31.5]
[1748561586344,0.03895701,167.1,167.08,31.5]
[1748561587347,5.9843,167.09,167.08,31.5]
[1748561595164,5.9847,167.08,167.07,0.0413709]
[1748561595659,5.9847,167.08,167.07,7.09e-05]
[1748561602962,5.9868,167.02,167.01,31.42]
[1748561604161,5.9871,167.01,167.0,0.03896994]
[1748561607564,5.9869,167.02,167.0,0.03896994]
[1748561607870,0.04328516,167.03,167.0,0.03896994]
[1748561608469,5.9868,167.02,167.0,0.03896994]
[1748561608667,0.04328516,167.03,167.0,0.03896994]
[1748561609167,5.9871,167.01,167.0,0.03896994]
[1748561610669,5.9869,167.02,167.0,0.03896994]
[1748561610868,0.04328516,167.03,167.0,0.03896994]
[1748561611272,5.9871,167.01,167.0,0.03896994]
[1748561612165,5.9869,167.02,167.0,0.03896994]
[1748561612365,0.04328516,167.03,167.0,0.03896994]
[1748561612574,5.9868,167.02,167.0,0.03896994]
[1748561612965,0.04328516,167.03,167.0,0.03896994]
[1748561613873,5.9871,167.01,167.0,0.03896994]
[1748561615472,0.04328516,167.03,167.0,0.03896994]
[1748561615878,0.04328516,167.03,167.01,31.44]
[1748561616669,0.04328516,167.03,167.0,0.03896994]
[1748561617074,5.9871,167.01,167.0,0.03896994]
[1748561619480,5.9869,167.02,167.0,0.03896994]
[1748561619672,0.04328516,167.03,167.0,0.03896994]
[1748561619876,6.02988516,167.03,167.0,0.03896994]
[1748561620277,0.04328516,167.03,167.0,6.02636994]
[1748561620781,0.04328516,167.03,167.0,0.03896994]
[1748561622374,0.04328516,167.03,167.0,6.02626994]
[1748561622579,0.04328516,167.03,167.0,0.03896994]
[1748561623678,6.02988516,167.03,167.0,0.03896994]
[1748561627179,5.9869,167.02,167.0,0.03896994]
[1748561627977,5.9871,167.01,167.0,0.03896994]
[1748561629976,5.9871,167.01,167.0,6.994e-05]
[1748561637893,31.42,167.01,166.91,31.42]
[1748561638089,31.42,167.01,166.89,519.2438]
[1748561638287,31.42,167.01,166.9,31.42]
[1748561638687,5.17378334,166.99,166.9,31.42]
[1748561638885,0.04213367,166.96,166.93,0.04035385]
[1748561639691,5.9896,166.94,166.93,0.04035385]
[1748561640693,6.03133367,166.96,166.93,0.04035385]
[1748561641105,0.04213367,166.96,166.93,6.03015385]
[1748561641302,0.04213367,166.96,166.93,0.04035385]
[1748561642598,5.9896,166.94,166.93,0.04035385]
[1748561643298,5.9896,166.94,166.93,5.385e-05]
[1748561643709,5.9921,166.87,166.86,31.44]
[1748561646405,5.9925,166.86,166.85,0.04208425]
[1748561648702,5.9922,166.87,166.85,0.04208425]
[1748561649103,0.04289256,166.88,166.85,0.04208425]
[1748561649604,5.9921,166.87,166.85,0.04208425]
[1748561649910,0.04289256,166.88,166.85,0.04208425]
[1748561650306,6.03479256,166.88,166.85,0.04208425]